Workbook

Sheet dataset
B2: Bank Statement of a Company
B4: Loan (PV) | C4: Loan (FV) | D4: Rate of Interest (Annual) | E4: Total Payment (Annual)
B5: 1000 | C5: 500 | D5: 0.05 | E5: 7
B6: 5000 | C6: 2000 | D6: 0.04 | E6: 8
B7: 8000 | C7: 3000 | D7: 0.05 | E7: 4
B8: 9000 | C8: 2000 | D8: 0.03 | E8: 6
B9: 4000 | C9: 1000 | D9: 0.07 | E9: 10
B10: 7000 | C10: 2000 | D10: 0.03 | E10: 9

Sheet quick view
B1: IPMT Function
B2: =IPMT(rate,per,nper,pv,[fv],[type])
B4: rate | C4: per | D4: nper | E4: pv | F4: [fv] | G4: [type] | H4: Formula | I4: Output
B5: 0.05 | C5: 1 | D5: 8 | E5: 5000 | H5: =_xlfn.FORMULATEXT(I5) -> =IPMT(B5,C5,D5,E5) | I5: =IPMT(B5,C5,D5,E5) -> -250
B6: 0.05 | C6: 1 | D6: 8 | E6: 5000 | F6: 2000 | H6: =_xlfn.FORMULATEXT(I6) -> =IPMT(B6,C6,D6,E6,F6) | I6: =IPMT(B6,C6,D6,E6,F6) -> -250
B7: 0.05 | C7: 1 | D7: 8 | E7: 5000 | F7: 2000 | G7: 0 | H7: =_xlfn.FORMULATEXT(I7) -> =IPMT(B7,C7,D7,E7,F7,G7) | I7: =IPMT(B7,C7,D7,E7,F7,G7) -> -250
B8: 0.05 | C8: 1 | D8: 8 | E8: 5000 | F8: 2000 | G8: 1 | H8: =_xlfn.FORMULATEXT(I8) -> =IPMT(B8,C8,D8,E8,F8,G8) | I8: =IPMT(B8,C8,D8,E8,F8,G8) -> 0
B9: 0.06 | C9: 1 | D9: 8 | E9: 5000 | H9: =_xlfn.FORMULATEXT(I9) -> =IPMT(B9,C9,D9,E9) | I9: =IPMT(B9,C9,D9,E9) -> -300
B10: 0.06 | C10: 4 | D10: 8 | E10: 5000 | G10: 1 | H10: =_xlfn.FORMULATEXT(I10) -> =IPMT(B10,C10,D10,E10,,G10) | I10: =IPMT(B10,C10,D10,E10,,G10) -> -191.9835773
B11: 0.06 | C11: 10 | D11: 8 | E11: 5000 | H11: =_xlfn.FORMULATEXT(I11) -> =IPMT(B11,C11,D11,E11) | I11: =IPMT(B11,C11,D11,E11) -> 
B12: 0.06 | C12: 3 | D12: 8 | E12: 10000 | F12: 2000 | G12: 1 | H12: =_xlfn.FORMULATEXT(I12) -> =IPMT(B12,C12,D12,E12,F12,G12) | I12: =IPMT(B12,C12,D12,E12,F12,G12) -> -424.6636697
B13: 0.06 | C13: 3 | D13: 8 | E13: 10000 | F13: 2000 | G13: 0 | H13: =_xlfn.FORMULATEXT(I13) -> =IPMT(B13,C13,D13,E13,F13,G13) | I13: =IPMT(B13,C13,D13,E13,F13,G13) -> -450.1434899
B15: The IPMT Function returns interest payment for a certain period

Sheet yearly
B2: Without Optional Argument
B4: Loan (PV) | C4: Rate of Interest (Annual) | D4: Total Payment (Annual) | E4: Interest Payment
B5: 1000 | C5: 0.05 | D5: 7 | E5: =IPMT(C5,1,D5,B5) -> -50
B6: 5000 | C6: 0.04 | D6: 8 | E6: -200
B7: 8000 | C7: 0.05 | D7: 4 | E7: -400
B8: 9000 | C8: 0.03 | D8: 6 | E8: -270
B9: 4000 | C9: 0.07 | D9: 10 | E9: -280
B10: 7000 | C10: 0.03 | D10: 9 | E10: -210

Sheet optional argument
B2: With Optional Argument
B4: Loan (PV) | C4: Loan (FV) | D4: Rate of Interest (Annual) | E4: Total Payment (Annual) | F4: Interest Payment
B5: 1000 | C5: 500 | D5: 0.05 | E5: 7 | F5: =IPMT(D5,2,E5,B5,C5,0) -> -40.78851362
B6: 5000 | C6: 2000 | D6: 0.04 | E6: 8 | F6: =IPMT(D6,2,E6,B6,C6,0) -> -169.612207
B7: 8000 | C7: 3000 | D7: 0.05 | E7: 4 | F7: -272.3934921
B8: 9000 | C8: 2000 | D8: 0.03 | E8: 6 | F8: -218.9828249
B9: 4000 | C9: 1000 | D9: 0.07 | E9: 10 | F9: -254.667874
B10: 7000 | C10: 2000 | D10: 0.03 | E10: 9 | F10: -183.4228586

Sheet optional1
B2: With Optional Argument
B4: Loan (PV) | C4: Loan (FV) | D4: Rate of Interest (Annual) | E4: Total Payment (Annual) | F4: Interest Payment
B5: 1000 | C5: 500 | D5: 0.05 | E5: 7 | F5: =IPMT(D5,2,E5,B5,C5,1) -> -38.84620344
B6: 5000 | C6: 2000 | D6: 0.04 | E6: 8 | F6: =IPMT(D6,2,E6,B6,C6,1) -> -163.0886606
B7: 8000 | C7: 3000 | D7: 0.05 | E7: 4 | F7: -259.4223734
B8: 9000 | C8: 2000 | D8: 0.03 | E8: 6 | F8: -212.6046843
B9: 4000 | C9: 1000 | D9: 0.07 | E9: 10 | F9: -238.0073589
B10: 7000 | C10: 2000 | D10: 0.03 | E10: 9 | F10: -178.0804452

Sheet semi-annual
B2: For Semi-Annually Interest Payment
B4: Loan (PV) | C4: Loan (FV) | D4: Rate of Interest (Annual) | E4: Total Payment (Annual) | F4: Interest Payment
B5: 1000 | C5: 500 | D5: 0.05 | E5: 7 | F5: =IPMT(D5/2,2,E5*2,B5) -> -23.48658688
B6: 5000 | C6: 2000 | D6: 0.04 | E6: 8 | F6: =IPMT(D6/2,2,E6*2,B6) -> -94.63498741
B7: 8000 | C7: 3000 | D7: 0.05 | E7: 4 | F7: -177.1065308
B8: 9000 | C8: 2000 | D8: 0.03 | E8: 6 | F8: -124.648201
B9: 4000 | C9: 1000 | D9: 0.07 | E9: 10 | F9: -135.0494493
B10: 7000 | C10: 2000 | D10: 0.03 | E10: 9 | F10: -99.87539291

Sheet Quarterly
B2: For Quarterly Interest Payment
B4: Loan (PV) | C4: Rate of Interest (Annual) | D4: Total Payment (Annual) | E4: Interest Payment
B5: 1000 | C5: 0.05 | D5: 7 | E5: =IPMT(C5/4,3,D5*4,B5) -> -11.74408908
B6: 5000 | C6: 0.04 | D6: 8 | E6: =IPMT(C6/4,3,D6*4,B6) -> -47.31957598
B7: 8000 | C7: 0.05 | D7: 4 | E7: -88.55959719
B8: 9000 | C8: 0.03 | D8: 6 | E8: -62.32572877
B9: 4000 | C9: 0.07 | D9: 10 | E9: -67.53250394
B10: 7000 | C10: 0.03 | D10: 9 | E10: -49.93896005

Sheet Monthly
B2: For Monthly Interest Payment
B4: Loan (PV) | C4: Loan (FV) | D4: Rate of Interest (Annual) | E4: Total Payment (Annual) | F4: Interest Payment
B5: 1000 | C5: 500 | D5: 0.05 | E5: 7 | F5: =IPMT(D5/12,6,E5*12,B5,C5,1) -> -3.836598043
B6: 5000 | C6: 2000 | D6: 0.04 | E6: 8 | F6: =IPMT(D6/12,6,E6*12,B6,C6,1) -> -15.57464699
B7: 8000 | C7: 3000 | D7: 0.05 | E7: 4 | F7: -28.85424918
B8: 9000 | C8: 2000 | D8: 0.03 | E8: 6 | F8: -20.69413549
B9: 4000 | C9: 1000 | D9: 0.07 | E9: 10 | F9: -22.35051382
B10: 7000 | C10: 2000 | D10: 0.03 | E10: 9 | F10: -16.54542599

Sheet weekly
B2: For Weekly Interest Payment
B4: Loan (PV) | C4: Loan (FV) | D4: Rate of Interest (Annual) | E4: Total Payment (Annual) | F4: Interest Payment
B5: 1000 | C5: 500 | D5: 0.05 | E5: 7 | F5: =IPMT(D5/52,14,E5*52,B5,C5,1) -> -0.9173613176
B6: 5000 | C6: 2000 | D6: 0.04 | E6: 8 | F6: =IPMT(D6/52,14,E6*52,B6,C6,1) -> -3.699802934
B7: 8000 | C7: 3000 | D7: 0.05 | E7: 4 | F7: -7.084565792
B8: 9000 | C8: 2000 | D8: 0.03 | E8: 6 | F8: -4.947201481
B9: 4000 | C9: 1000 | D9: 0.07 | E9: 10 | F9: -5.260290981
B10: 7000 | C10: 2000 | D10: 0.03 | E10: 9 | F10: -3.910093657

Sheet Table
B2: Using Table option
B4: Loan (PV) | C4: Rate of Interest (Annual) | D4: Total Payment (Annual) | E4: Interest Payment
B5: 1000 | C5: 0.05 | D5: 7 | E5: =IPMT(Table1[[#This Row],[Rate of Interest (Annual)]],1,Table1[[#This Row],[Total Payment (Annual)]],Table1[[#This Row],[Loan (PV)]]) -> -50
B6: 5000 | C6: 0.04 | D6: 8 | E6: =IPMT(Table1[[#This Row],[Rate of Interest (Annual)]],1,Table1[[#This Row],[Total Payment (Annual)]],Table1[[#This Row],[Loan (PV)]]) -> -200
B7: 8000 | C7: 0.05 | D7: 4 | E7: =IPMT(Table1[[#This Row],[Rate of Interest (Annual)]],1,Table1[[#This Row],[Total Payment (Annual)]],Table1[[#This Row],[Loan (PV)]]) -> -400
B8: 9000 | C8: 0.03 | D8: 6 | E8: =IPMT(Table1[[#This Row],[Rate of Interest (Annual)]],1,Table1[[#This Row],[Total Payment (Annual)]],Table1[[#This Row],[Loan (PV)]]) -> -270
B9: 4000 | C9: 0.07 | D9: 10 | E9: =IPMT(Table1[[#This Row],[Rate of Interest (Annual)]],1,Table1[[#This Row],[Total Payment (Annual)]],Table1[[#This Row],[Loan (PV)]]) -> -280
B10: 7000 | C10: 0.03 | D10: 9 | E10: =IPMT(Table1[[#This Row],[Rate of Interest (Annual)]],1,Table1[[#This Row],[Total Payment (Annual)]],Table1[[#This Row],[Loan (PV)]]) -> -210

Sheet VBA
B2: VBA Code
B4: Loan (PV) | C4: Loan (FV) | D4: Rate of Interest (Annual) | E4: Total Payment (Annual) | F4: Interest Payment
B5: 1000 | C5: 500 | D5: 0.05 | E5: 7 | F5: -50
B6: 5000 | C6: 2000 | D6: 0.04 | E6: 8 | F6: -200
B7: 8000 | C7: 3000 | D7: 0.05 | E7: 4 | F7: -400
B8: 9000 | C8: 2000 | D8: 0.03 | E8: 6 | F8: -270
B9: 4000 | C9: 1000 | D9: 0.07 | E9: 10 | F9: -280
B10: 7000 | C10: 2000 | D10: 0.03 | E10: 9 | F10: -210

Sheet practice
B2: Practice
B4: Loan (PV) | C4: Loan (FV) | D4: Rate of Interest (Annual) | E4: Total Payment (Annual) | F4: Interest Payment
B5: 1000 | C5: 500 | D5: 0.05 | E5: 7
B6: 5000 | C6: 2000 | D6: 0.04 | E6: 8
B7: 8000 | C7: 3000 | D7: 0.05 | E7: 4
B8: 9000 | C8: 2000 | D8: 0.03 | E8: 6
B9: 4000 | C9: 1000 | D9: 0.07 | E9: 10
B10: 7000 | C10: 2000 | D10: 0.03 | E10: 9
